Workbook

Sheet MSU
B1: Jukka-Pekka Leskinen | F1: 30.10.1974
B2: SUPERPESIS | E2: Runkosarja | I2: Kärkilyönnit (KL), pesänvälit | P2: Ylempi loppusarja | W2: Alempi loppusarja | AD2: Arvo-ottelut | AH2: Mitalit
B3: Vuosi | C3: Sija | D3: Seura | E3: OTT | F3: KUN | G3: LÖI | H3: TOI | I3: KL | J3: 0 > 1 | K3: 1 > 2 | L3: 2 > 3 | M3: 3 > k | N3: KL-% | P3: OTT | Q3: KUN | R3: LÖI | S3: TOI | T3: KL | U3: KL-% | W3: OTT | X3: KUN | Y3: LÖI | Z3: TOI | AA3: KL | AB3: KL-% | AD3: IL | AE3: LL | AF3: hSM | AG3: K | AH3: H | AI3: P
B4: 1990 | C4: 9. | D4: KiPa 2 | F4: suomensarja
B5: 1991 | C5: 5. | D5: KiPa 2 | F5: suomensarja
B6: 1992 | C6: 5. | D6: JuPa | F6: ykköspesis
B7: 1992 | C7: 9. | D7: KiPa | E7: 2 | F7: 0 | G7: 2 | H7: 0 | I7: 2 | J7: 0 | K7: 0 | L7: 0 | M7: 2 | N7: 13.3 %
B8: 1993 | C8: 11. | D8: KiPa | E8: 25 | F8: 0 | G8: 19 | H8: 1 | I8: 35 | J8: 1 | K8: 3 | L8: 12 | M8: 19 | N8: 42.2 % | W8: 3 | X8: 0 | Y8: 2 | Z8: 0 | AA8: 8 | AB8: 40.0 %
B9: 1994 | C9: 5. | D9: KiPa | E9: 34 | F9: 1 | G9: 16 | H9: 6 | I9: 65 | J9: 16 | K9: 13 | L9: 19 | M9: 17 | N9: 36.9 %
B10: 1995 | C10: 10. | D10: IPV | E10: 29 | F10: 1 | G10: 15 | H10: 5 | I10: 82 | J10: 21 | K10: 17 | L10: 28 | M10: 16 | N10: 41.2 % | W10: 2 | X10: 0 | Y10: 2 | Z10: 0 | AA10: 5 | AB10: 45.5 %
B11: 1996 | C11: 14. | D11: IPV | E11: 29 | F11: 1 | G11: 9 | H11: 5 | I11: 97 | J11: 20 | K11: 35 | L11: 32 | M11: 10 | N11: 49.0 %
B12: 1997 | C12: 2. | D12: KPL | F12: ykköspesis | W12: 4 | X12: 0 | Y12: 0 | Z12: 5 | AA12: 13 | AB12: 61.9 %
B13: 1998 | C13: 1. | D13: KPL | F13: ykköspesis
B14: 1999 | C14: 10. | D14: KeMu | F14: ykköspesis
B15: 2000 | C15: 2. | D15: PuPe | F15: ykköspesis | W15: 7 | X15: 1 | Y15: 7 | Z15: 3 | AA15: 34 | AB15: 60.7 %
B16: 2001 | C16: 1. | D16: PuPe | F16: ykköspesis
B17: Yhteensä | E17: 119 | F17: 3 | G17: 61 | H17: 17 | I17: 281 | J17: 58 | K17: 68 | L17: 91 | M17: 64 | N17: 41.9 % | P17: =SUM(P11:P16) -> 0 | Q17: =SUM(Q11:Q16) -> 0 | R17: =SUM(R11:R16) -> 0 | S17: =SUM(S11:S16) -> 0 | T17: =SUM(T11:T16) -> 0 | U17: 0.0 % | W17: =PRODUCT(E23) -> 16 | X17: =PRODUCT(F23) -> 1 | Y17: =PRODUCT(G23) -> 11 | Z17: =PRODUCT(H23) -> 8 | AA17: =PRODUCT(I23) -> 60 | AB17: =PRODUCT(N23) -> 56.7 % | AD17: 0 | AE17: 0 | AF17: 0 | AG17: 0 | AH17: 0 | AI17: 0
B18: Pesispörssi | D18: 193.0
B20: URA SUPERISSA | E20: OTT | F20: KUN | G20: LÖI | H20: TOI | I20: KL | K20: ka/L | L20: ka/T | M20: ka/KL | N20: KL-% | P20: ENSIMMÄISET RUNKOSARJASSA
B21: Runkosarja | E21: 119 | F21: 3 | G21: 61 | H21: 17 | I21: 281 | K21: 0.54 | L21: 0.14 | M21: 2.36 | N21: 41.9 % | P21: Ottelu | R21: 05.07. 1992 SMJ - KiPa 6-5 | Z21: 1. ottelu | AB21: 19 v 3 kk 0 pv
B22: Ylempi loppusarja | P22: Lyöty | R22: 05.07. 1992 SMJ - KiPa 6-5 | Z22: 1. ottelu | AB22: 19 v 3 kk 0 pv
B23: Alempi loppusarja | E23: 16 | F23: 1 | G23: 11 | H23: 8 | I23: 60 | K23: 0.75 | L23: 0.50 | M23: 3.75 | N23: 56.7 % | P23: Tuotu | R23: 20.06. 1993 KiPa - SMJ 12-2 | Z23: 16. ottelu | AB23: 20 v 2 kk 15 pv
B24: KAIKKI | E24: 135 | F24: 4 | G24: 72 | H24: 25 | I24: 341 | K24: 0.56 | L24: 0.19 | M24: 2.53 | N24: 43.9 % | P24: Kunnari | R24: 05.06. 1994 KiPa - PattU 0-2 (0-4, 6-10) | Z24: 37. ottelu | AB24: 21 v 2 kk 0 pv
B26: Seurat | D26: KiPa = Kiteen Pallo-90 (1990)
D27: JuPa = Juvan Pallo (1950)
D28: IPV = Imatran Pallo-Veikot (1955)
D29: KPL = Kouvolan Pallonlyöjät (1931)
D30: KeMu = Kuopion Kelta-Mustat (1950)
D31: PuPe = Puijon Pesäpallo (1999)

Sheet MYP, MSS
B1: Jukka-Pekka Leskinen | F1: 30.10.1974
B2: YKKÖSPESIS | E2: Runkosarja | L2: Runkosarja TOP-10 | Q2: Jatkosarjat | X2: SUOMENSARJA | AA2: Runkosarja | AH2: Runkosarja TOP-10 | AM2: Jatkosarjat
B3: Vuosi | C3: Sija | D3: Seura | E3: OTT | F3: KUN | G3: LÖI | H3: TOI | I3: KL | J3: KL-% | L3: LÖI | M3: TOI | N3: L+T | O3: KL | Q3: OTT | R3: KUN | S3: LÖI | T3: TOI | U3: KL | V3: KL-% | X3: Vuosi | Y3: Sija | Z3: Seura | AA3: OTT | AB3: KUN | AC3: LÖI | AD3: TOI | AE3: KL | AF3: KL-% | AH3: LÖI | AI3: TOI | AJ3: L+T | AK3: KL | AM3: OTT | AN3: KUN | AO3: LÖI | AP3: TOI | AQ3: KL | AR3: KL-%
X4: 1990 | Y4: 9. | Z4: KiPa 2 | AA4: 8 | AB4: 0 | AC4: 6 | AD4: 1
X5: 1991 | Y5: 5. | Z5: KiPa 2 | AA5: 21 | AB5: 2 | AC5: 29 | AD5: 14
B6: 1992 | C6: 5. | D6: JuPa | E6: 22 | F6: 3 | G6: 27 | H6: 8 | I6: 87
B8: 1997 | C8: 2. | D8: KPL | E8: 26 | F8: 2 | G8: 16 | H8: 24 | I8: 108
B9: 1998 | C9: 1. | D9: KPL | E9: 24 | F9: 2 | G9: 15 | H9: 14 | I9: 93
B10: 1999 | C10: 10. | D10: KeMu
B11: 2000 | C11: 2. | D11: PuPe | E11: 26 | F11: 1 | G11: 40 | H11: 12 | I11: 110 | J11: 53.1 % | K11: 207 | L11: 8.
B12: 2001 | C12: 1. | D12: PuPe | E12: 25 | F12: 1 | G12: 14 | H12: 12 | I12: 93 | J12: 54.7 % | K12: 170
B13: YHTEENSÄ | E13: =SUM(E4:E12) -> 123 | F13: =SUM(F4:F12) -> 9 | G13: =SUM(G4:G12) -> 112 | H13: =SUM(H4:H12) -> 70 | I13: =SUM(I4:I12) -> 491 | J13: 0.0 % | K13: =SUM(K4:K12) -> 377 | Q13: =SUM(Q4:Q12) -> 0 | R13: =SUM(R4:R12) -> 0 | S13: =SUM(S4:S12) -> 0 | T13: =SUM(T4:T12) -> 0 | U13: =SUM(U4:U12) -> 0 | V13: 0.0 % | W13: =SUM(W4:W12) -> 0 | X13: YHTEENSÄ | AA13: =SUM(AA4:AA12) -> 29 | AB13: =SUM(AB4:AB12) -> 2 | AC13: =SUM(AC4:AC12) -> 35 | AD13: =SUM(AD4:AD12) -> 15 | AE13: =SUM(AE4:AE12) -> 0 | AF13: 0.0 % | AG13: =SUM(AG4:AG12) -> 0 | AM13: =SUM(AM4:AM12) -> 0 | AN13: =SUM(AN4:AN12) -> 0 | AO13: =SUM(AO4:AO12) -> 0 | AP13: =SUM(AP4:AP12) -> 0 | AQ13: =SUM(AQ4:AQ12) -> 0 | AR13: 0.0 % | AS13: =SUM(AS4:AS12) -> 0
B15: KAIKKI OTTELUT | E15: OTT | F15: KUN | G15: LÖI | H15: TOI | I15: KL | J15: KL-% | L15: ka/L | M15: ka/T | N15: ka/l+t | O15: ka/kl | R15: Seurat | T15: KiPa = Kiteen Pallo-90 (1990)
B16: SUPERPESIS | E16: 135 | F16: 4 | G16: 72 | H16: 25 | I16: 341 | J16: 43.9 % | K16: =PRODUCT(I16/J16) -> 776.7653759 | L16: =PRODUCT((F16+G16)/E16) -> 0.56 | M16: =PRODUCT(H16/E16) -> 0.19 | N16: =PRODUCT((F16+G16+H16)/E16) -> 0.75 | O16: =PRODUCT(I16/E16) -> 2.53 | T16: JuPa = Juvan Pallo (1950)
B17: YKKÖSPESIS | E17: =PRODUCT(E13+Q13) -> 123 | F17: =PRODUCT(F13+R13) -> 9 | G17: =PRODUCT(G13+S13) -> 112 | H17: =PRODUCT(H13+T13) -> 70 | I17: =PRODUCT(I13+U13) -> 491 | K17: =PRODUCT(K13+W13) -> 377 | L17: =PRODUCT((F17+G17)/E17) -> 0.98 | M17: =PRODUCT(H17/E17) -> 0.57 | N17: =PRODUCT((F17+G17+H17)/E17) -> 1.55 | O17: =PRODUCT(I17/E17) -> 3.99 | T17: IPV = Imatran Pallo-Veikot (1955)
B18: SUOMENSARJA | E18: =PRODUCT(AA13+AM13) -> 29 | F18: =PRODUCT(AB13+AN13) -> 2 | G18: =PRODUCT(AC13+AO13) -> 35 | H18: =PRODUCT(AD13+AP13) -> 15 | I18: =PRODUCT(AE13+AQ13) -> 0 | J18: 0.0 % | K18: =PRODUCT(AG13+AS13) -> 0 | L18: 0.00 | M18: 0.00 | N18: 0.00 | O18: 0.00 | T18: KPL = Kouvolan Pallonlyöjät (1931)
B19: YHTEENSÄ | E19: =SUM(E16:E18) -> 287 | F19: =SUM(F16:F18) -> 15 | G19: 219 | H19: 110 | I19: 832 | K19: =SUM(K16:K18) -> 1153.765376 | L19: =PRODUCT((F19+G19)/E19) -> 0.82 | M19: =PRODUCT(H19/E19) -> 0.38 | N19: =PRODUCT((F19+G19+H19)/E19) -> 1.20 | O19: 3.22 | T19: KeMu = Kuopion Kelta-Mustat (1950)
T20: PuPe = Puijon Pesäpallo (1999)

Sheet Arvo-ottelut
B1: ITÄ - LÄNSI - KORTTI
B2: Jukka-Pekka Leskinen | C2: 30.10.1974
B3: C-POJAT | C3: Itä - Länsi, tulos | D3: Joukkue | E3: Seura | G3: V | H3: T | I3: H | J3: Up. | K3: Lj. | L3: Palk. | M3: O | N3: K | O3: L | P3: T | Q3: KL | R3: 1 | S3: 2 | T3: 3 | U3: k | V3: KL-% | W3: Pelinjohtaja | X3: Yleisöä
B4: 17.06. 1988 Kannus | C4: 17-10 | D4: Itä | E4: KiU | G4: 1 | M4: 1 | W4: Kari-Pekka Heinonen | X4: 500
B5: 01.08. 1989 Riihimäki | C5: 17-2 | D5: Itä | E5: KiU | G5: 1 | M5: 1 | O5: 1 | W5: Risto Myllymäki | X5: 350
B7: B-POJAT | C7: Itä - Länsi, tulos | D7: Joukkue | E7: Seura | G7: V | H7: T | I7: H | J7: Up. | K7: Lj. | L7: Palk. | M7: O | N7: K | O7: L | P7: T | Q7: KL | R7: 1 | S7: 2 | T7: 3 | U7: k | V7: KL-% | W7: Pelinjohtaja | X7: Yleisöä
B8: 06.07. 1991 Siilinjärvi | C8: 11-3 | D8: Itä | E8: KiPa | G8: 1 | L8: II p | M8: 1 | W8: Jussi Viljanen | X8: 326
B10: A-POJAT | C10: Itä - Länsi, tulos | D10: Joukkue | E10: Seura | G10: V | H10: T | I10: H | J10: Up. | K10: Lj. | L10: Palk. | M10: O | N10: K | O10: L | P10: T | Q10: KL | R10: 1 | S10: 2 | T10: 3 | U10: k | V10: KL-% | W10: Pelinjohtaja | X10: Yleisöä
B11: 28.06. 1992 Seinäjoki | C11: 6-8 | D11: Itä | E11: KiPa | I11: 1 | J11: L | K11: 5 | M11: 1 | Q11: 1/4 | S11: 1/2 | T11: 0/1 | U11: 0/1 | V11: 25.0 % | W11: Kari-Pekka Heinonen | X11: 2515
